bitfinex/quotes_ETHUSD_20250222
["timestamp","ask_amount","ask_price","bid_price","bid_amount"]
[1740252834664,9.64074,2768.3,2767.9,0.04282462]
[1740252834831,5.24,2768.3,2767.9,0.04282462]
[1740252835039,4.40036,2768.5,2768.0,3.61264]
[1740252835237,4.40036,2768.5,2768.0,3.65531958]
[1740252836718,4.40036,2768.5,2768.0,0.04267958]
[1740252837559,3.61206,2768.5,2768.1,0.4469]
[1740252837762,3.61206,2768.5,2768.1,0.48946351]
[1740252838472,0.7883,2768.9,2768.1,0.89968086]
[1740252838667,4.39993,2768.9,2768.4,0.4469]
[1740252838961,3.61176,2768.8,2768.5,0.04157224]
[1740252839667,4.39993,2768.9,2768.5,0.04157224]
[1740252839835,3.61163,2768.9,2768.5,0.04157224]
[1740252840343,7.66799796,2769.1,2768.5,0.04157224]
[1740252840669,3.61169,2768.8,2768.5,0.04157224]
[1740252840969,6.61156,2768.9,2768.5,0.04157224]
[1740252841542,10.22319,2768.9,2768.5,0.04157224]
[1740252841885,3.6117,2768.8,2768.5,0.04157224]
[1740252842863,3.61187,2768.7,2768.5,0.04157224]
[1740252844978,6.61155,2768.9,2768.5,0.04157224]
[1740252845700,0.7883,2769.1,2768.5,0.04157224]
[1740252845984,3.61084,2769.5,2769.0,3.61139]
[1740252846182,3.0,2769.5,2769.1,0.4469]
[1740252846498,3.0,2769.5,2769.1,0.48752724]
[1740252847260,0.7883,2769.6,2769.1,0.48752724]
[1740252847459,3.61056,2769.7,2769.2,3.61113]
[1740252847683,3.0,2769.6,2769.2,3.61113]
[1740252847867,3.0,2769.6,2769.3,0.04336548]
[1740252848274,3.0,2769.6,2769.1,0.92958127]
[1740252848602,3.61077,2769.5,2769.1,0.4469]
[1740252848764,3.61077,2769.5,2769.2,0.04349037]
[1740252849763,3.61089,2769.4,2769.2,0.04349037]
[1740252853104,3.61067,2769.6,2769.2,0.04349037]
[1740252853395,3.61079,2769.5,2769.2,0.04349037]
[1740252855996,3.61067,2769.6,2769.2,0.04349037]
[1740252856665,3.6106,2769.7,2769.3,0.4469]
[1740252856978,3.6106,2769.7,2769.4,0.04233677]
[1740252858599,3.61067,2769.6,2769.4,0.04233677]
[1740252860668,3.61076,2769.5,2769.4,0.04233677]
[1740252861098,3.61076,2769.5,2769.1,0.4469]
[1740252861301,3.61076,2769.5,2769.4,0.04579058]
[1740252861493,3.61067,2769.6,2769.1,4.05814]
[1740252861667,3.61067,2769.6,2769.4,0.04579058]
[1740252861867,3.61067,2769.6,2769.1,0.4469]
[1740252862099,7.22139,2769.6,2769.5,0.0456553]
[1740252862303,3.61067,2769.6,2769.1,0.4469]
[1740252862479,3.61067,2769.6,2769.5,0.0456553]
[1740252862682,3.61078,2769.5,2769.1,0.4469]
[1740252862892,3.61078,2769.5,2769.1,1.46223163]
[1740252863512,3.61078,2769.5,2769.1,0.4469]
[1740252864001,3.61096,2769.4,2769.1,0.4469]
[1740252864201,3.61077,2769.5,2769.1,0.4469]
[1740252864900,3.61057,2769.7,2769.2,0.04606116]
[1740252865108,7.22115,2769.7,2769.2,0.04606116]
[1740252865401,3.61057,2769.7,2769.2,0.04606116]
[1740252866101,7.22116,2769.7,2769.2,0.04606116]
[1740252866310,3.61057,2769.7,2769.2,0.04606116]
[1740252866674,5.24,2770.1,2769.5,0.4469]
[1740252866874,3.60967,2770.4,2769.8,3.61034]
[1740252867069,0.8088,2770.5,2769.7,0.4469]
[1740252867276,3.6102,2770.0,2769.9,0.04864125]
[1740252867476,3.6102,2770.0,2769.8,0.04878878]
[1740252867711,3.6102,2770.0,2769.7,0.4469]
[1740252867891,3.61027,2769.9,2769.7,0.4469]
[1740252868377,7.22062,2769.9,2769.7,0.4469]
[1740252868573,0.8088,2770.1,2768.9,3.36066483]
[1740252868574,3.61038,2769.8,2769.4,0.4469]
[1740252869015,3.61038,2769.8,2769.5,0.405788]
[1740252872613,3.61038,2769.8,2769.4,0.4469]
[1740252879814,3.61038,2769.8,2769.5,0.04901058]
[1740252884322,3.61062,2769.6,2769.5,0.04901058]
[1740252884703,3.61062,2769.6,2769.1,0.4469]
[1740252884897,3.61062,2769.6,2769.5,0.04901058]
[1740252885108,3.61062,2769.6,2769.1,1.240173]
[1740252885305,3.61062,2769.6,2769.5,0.04901058]
[1740252885506,3.61062,2769.6,2769.1,1.240173]
[1740252885706,3.61062,2769.6,2769.5,0.04901058]
[1740252885924,3.61062,2769.6,2769.1,1.240173]
[1740252886524,3.61062,2769.6,2769.2,0.04945334]
[1740252887032,3.61013,2770.0,2769.4,3.61077]
[1740252887188,7.22033,2770.0,2769.4,3.61077]
[1740252887523,7.22036,2770.0,2769.5,0.04906946]
[1740252887825,3.61027,2769.9,2769.5,0.04906946]
[1740252888497,3.61043,2769.8,2769.5,0.04906946]
[1740252888706,4.41467,2769.7,2769.5,0.04906946]
[1740252889024,4.41467,2769.7,2769.6,0.04892189]
[1740252889229,4.41467,2769.7,2769.2,4.17420621]
[1740252889427,4.41467,2769.7,2769.6,0.04892189]
[1740252889617,4.41467,2769.7,2769.2,4.17420621]
[1740252889824,4.41467,2769.7,2769.6,0.04892189]
[1740252890124,4.41467,2769.7,2769.2,4.17420621]
[1740252890336,0.8041,2769.7,2769.6,0.04892189]
[1740252890841,0.8041,2769.7,2769.2,7.78527621]
[1740252891320,0.8041,2769.7,2769.3,0.04936462]
[1740252891521,0.8041,2769.7,2769.3,0.956846]
[1740252891690,0.8041,2769.7,2769.3,0.90748138]
[1740252891896,0.8041,2769.7,2769.4,0.04921703]
[1740252893836,0.8041,2769.7,2769.2,7.2221]
[1740252893994,0.8041,2769.7,2769.3,3.61097]
[1740252894334,0.7616,2770.1,2769.8,3.61033]
[1740252894531,0.7616,2770.3,2769.8,3.61033]
[1740252894737,0.7616,2770.3,2769.9,0.04847927]
[1740252895312,4.37131,2770.3,2769.9,0.04847927]
[1740252895513,4.37131,2770.3,2769.9,0.49537927]
[1740252897343,4.37114,2770.5,2769.9,4.5160802]
[1740252898395,0.7616,2770.5,2769.9,0.9059502]
[1740252898597,6.60937,2770.6,2770.0,3.61002]
[1740252898792,3.60947,2770.5,2770.1,0.04806645]
[1740252899096,3.60947,2770.5,2770.1,0.49962219]
[1740252899510,3.60959,2770.4,2770.1,0.49962219]
[1740252899732,3.60959,2770.4,2770.1,0.04806645]
[1740252900040,3.60959,2770.4,2769.9,4.46768093]
[1740252900330,3.60959,2770.4,2770.2,0.04734487]
[1740252900531,3.61006,2770.1,2769.6,0.4469]
[1740252900732,4.37166,2770.1,2769.7,0.58369]
[1740252901631,3.61025,2769.9,2769.7,0.58369]
[1740252901830,3.61025,2769.9,2769.4,0.7222]
[1740252903629,3.61038,2769.8,2769.4,0.7222]
[1740252904208,3.61019,2770.0,2769.4,4.33304]
[1740252904543,3.61026,2769.9,2769.4,0.7222]
[1740252904747,3.61026,2769.9,2769.5,0.478001]
[1740252907142,4.37163,2770.1,2769.5,0.478001]
[1740252907343,4.38597,2770.4,2769.8,3.61035]
[1740252907715,4.38597,2770.4,2769.7,3.61046]
[1740252908052,3.60985,2770.2,2769.7,0.8146091]
[1740252908847,3.61004,2770.1,2769.7,0.8146091]
[1740252909553,3.61018,2770.0,2769.7,0.8146091]
[1740252909758,3.61038,2769.8,2769.5,0.478001]
[1740252909957,0.7763,2769.9,2769.5,0.478001]
[1740252909958,0.7763,2769.9,2769.8,0.04804533]
[1740252910161,4.38617,2770.2,2769.7,0.4469]
[1740252910332,4.38617,2770.2,2769.8,0.04804533]
[1740252910653,0.7763,2770.2,2769.8,0.45858086]
[1740252911014,4.38616,2770.2,2769.8,0.45858086]
[1740252911342,3.60965,2770.4,2769.8,0.45858086]
[1740252911343,0.7763,2770.4,2769.9,3.61022]
[1740252911707,0.7763,2770.4,2770.0,0.04780915]
[1740252911906,0.7763,2770.4,2769.8,0.41053553]
[1740252912125,4.38598,2770.4,2770.1,0.04766164]
[1740252912351,0.7763,2770.4,2769.9,7.66720655]
[1740252912555,0.7763,2770.4,2770.2,0.04751414]
[1740252912710,0.7763,2770.4,2769.9,4.05699655]
[1740252912912,0.7763,2770.4,2770.3,0.04736665]
[1740252913151,0.7763,2770.4,2769.9,4.05699655]
[1740252913316,0.7763,2770.4,2770.3,0.04736665]
[1740252913517,0.7763,2770.4,2770.0,0.40569966]
[1740252913719,3.60939,2770.6,2770.3,0.04736665]
[1740252913952,3.60939,2770.6,2770.1,0.4469]
[1740252914154,0.826,2770.7,2770.4,0.04721918]
[1740252914451,0.826,2770.7,2770.2,3.60976]
[1740252914452,0.826,2770.7,2770.5,0.0469098]
[1740252914817,0.826,2770.7,2770.6,0.04676234]
[1740252915017,0.826,2770.7,2770.2,3.60976]
[1740252915241,0.826,2770.7,2770.3,0.04720475]
[1740252915618,0.826,2770.7,2770.2,3.60976]
[1740252915820,4.4352,2770.7,2770.4,0.04705727]
[1740252916112,0.826,2770.7,2770.2,3.60982]
[1740252916348,0.826,2770.7,2770.5,0.0469098]
[1740252916555,0.826,2770.7,2770.2,3.60982]
[1740252916752,0.826,2770.7,2770.6,0.05143858]
[1740252917350,4.43519,2770.7,2770.2,3.60982]
[1740252917555,4.43519,2770.7,2770.6,0.05143858]
[1740252917742,4.43519,2770.7,2770.2,4.41706097]
[1740252917944,4.43519,2770.7,2770.6,0.05143858]
[1740252918130,4.43519,2770.7,2770.2,4.41706097]
[1740252918331,4.43519,2770.7,2770.6,0.05143858]
[1740252918526,0.826,2770.7,2770.2,4.41706097]
[1740252918745,0.826,2770.7,2770.6,0.05143858]
[1740252919049,0.826,2770.7,2770.2,3.60982]
[1740252919512,0.826,2770.7,2770.3,0.05192523]
[1740252919711,0.826,2770.7,2770.2,3.60982]
[1740252919915,0.826,2770.7,2770.4,0.05152825]
[1740252921054,0.826,2770.7,2770.5,0.05707337]
[1740252921428,3.7796,2770.9,2770.4,3.60954]
[1740252921818,7.38855,2770.9,2770.5,0.05707337]
[1740252922019,7.38855,2770.9,2770.3,3.60968]
[1740252922219,7.38855,2770.9,2770.4,0.05725361]
[1740252922928,3.6091,2770.8,2770.4,0.05725361]
[1740252923321,0.7796,2770.9,2770.4,3.66679361]
[1740252923536,0.7796,2770.9,2770.5,0.4469]
[1740252923922,0.7796,2770.9,2770.6,0.05689314]
[1740252925158,4.38854,2770.9,2770.6,0.05689314]
[1740252925364,0.7796,2770.9,2770.6,0.05689314]
[1740252927074,3.60919,2770.7,2770.6,0.05689314]
[1740252927577,3.60919,2770.7,2770.3,0.4469]
[1740252927818,7.21823,2770.8,2770.6,0.05689314]
[1740252927976,3.60907,2770.8,2770.3,0.4469]
[1740252928130,5.23760534,2770.8,2770.7,0.05671293]
[1740252928331,5.83932587,2770.8,2770.1,0.4469]
[1740252928553,3.60921,2770.7,2770.1,4.05676]
[1740252930642,3.60907,2770.8,2770.1,0.4469]
[1740252930849,3.60923,2770.7,2770.2,3.60982]
[1740252931976,3.60888,2771.0,2770.3,0.4469]
[1740252932143,0.7908,2771.1,2770.6,3.60932]
[1740252932348,0.7908,2771.1,2770.7,0.4469]
[1740252932936,4.39949,2771.1,2770.7,0.4469]
[1740252933363,3.6088,2771.0,2770.7,0.4469]
[1740252934474,3.6088,2771.0,2770.8,0.05628991]
[1740252934681,3.6088,2771.0,2770.7,0.4469]
[1740252934838,3.6088,2771.0,2770.9,0.05610972]
[1740252935040,0.7908,2771.1,2770.7,0.4469]
[1740252935271,0.7908,2771.1,2770.8,0.05628991]
[1740252935511,4.39948,2771.1,2770.7,0.4469]
[1740252935714,4.39948,2771.1,2770.9,0.05610972]
[1740252935911,4.39948,2771.1,2770.8,0.05628991]
[1740252936224,4.39948,2771.1,2770.7,0.4469]
[1740252936526,4.39948,2771.1,2770.8,0.05628991]
[1740252936886,4.39948,2771.1,2770.7,0.4469]
[1740252937196,4.39948,2771.1,2770.9,0.05610972]
[1740252937509,3.60882,2771.0,2770.7,0.4469]
[1740252938898,3.0,2771.4,2770.7,4.461624]
[1740252938899,0.7908,2771.4,2770.7,4.461624]
[1740252939116,4.39917,2771.4,2770.7,4.461624]
[1740252940055,3.6085,2771.3,2770.8,0.05057999]
[1740252940222,3.6085,2771.3,2770.7,8.070734]
[1740252940638,3.6085,2771.3,2770.8,0.05057999]
[1740252940832,3.6085,2771.3,2770.7,4.461624]
[1740252941033,3.6085,2771.3,2770.8,0.49674239]
[1740252941351,3.60861,2771.2,2770.8,0.49674239]
[1740252941518,0.7908,2771.4,2770.8,0.05057999]
[1740252941726,4.39973,2770.9,2770.8,0.05057999]
[1740252942224,3.60885,2771.0,2770.4,0.4469]
[1740252942225,3.60861,2771.2,2770.4,4.0564]
[1740252942424,3.60889,2771.0,2770.5,0.05106657]
[1740252943239,3.60858,2771.2,2770.6,0.4469]
[1740252943420,3.60858,2771.2,2770.7,0.41073066]
[1740252943621,3.60858,2771.2,2770.7,0.46147283]
[1740252944228,0.7908,2771.3,2770.7,4.07065283]
[1740252944541,4.39922,2771.3,2770.8,3.60904]
[1740252944745,3.60832,2771.4,2770.8,3.60904]
[1740252944955,3.60832,2771.4,2771.0,0.4469]
[1740252945451,3.60832,2771.4,2771.1,0.04984267]
[1740252945620,6.0308,2771.5,2771.1,0.04984267]
[1740252945941,3.60828,2771.4,2771.1,0.04984267]
[1740252950969,3.60848,2771.3,2771.1,0.04984267]
[1740252954381,6.04359465,2771.2,2771.1,0.04984267]
[1740252954875,3.60918,2770.8,2770.5,5.8369]
[1740252955061,3.60918,2770.8,2770.5,0.4469]
[1740252955262,3.60902,2770.9,2770.5,0.4469]
[1740252956474,3.60872,2771.1,2770.5,0.4469]
[1740252956679,3.60885,2771.0,2770.5,1.28719781]
[1740252956977,3.60872,2771.1,2770.5,1.28719781]
[1740252957277,3.60872,2771.1,2770.7,0.4469]
[1740252957441,7.21698,2771.3,2770.7,4.05602]
[1740252957846,3.60847,2771.3,2770.7,4.05602]
[1740252958045,3.60847,2771.3,2770.8,0.405602]
[1740252958454,0.8071,2771.4,2770.8,0.405602]
[1740252958685,0.8071,2771.4,2770.8,4.014582]
[1740252959072,4.41542,2771.4,2770.8,4.014582]
[1740252960585,5.24,2771.7,2771.1,3.6086]
[1740252960586,0.8071,2771.6,2771.1,3.6086]
[1740252960888,3.60815,2771.5,2770.9,7.66457]
[1740252961049,0.8071,2771.6,2771.0,4.4158172]
[1740252961450,3.60817,2771.5,2771.0,4.4158172]
[1740252961995,0.8071,2771.6,2771.0,8.0245072]
[1740252962181,3.60797,2771.7,2771.1,4.05548]
[1740252962382,7.21594,2771.7,2771.1,4.05548]
[1740252962589,7.21594,2771.7,2771.1,4.90259872]
[1740252963284,3.60797,2771.7,2771.1,4.90259872]
[1740252963490,3.60797,2771.7,2771.2,3.60851]
[1740252963792,3.60797,2771.7,2771.1,1.29401872]
[1740252963979,7.21596,2771.7,2771.1,0.4469]
[1740252964767,7.21595,2771.7,2771.1,4.05557]
[1740252964967,3.60797,2771.7,2771.1,4.05557]
[1740252966502,3.60802,2771.6,2771.1,4.05557]
[1740252967096,3.60797,2771.7,2771.1,4.05557]
[1740252967404,3.60797,2771.7,2771.2,0.766426]
[1740252967591,3.60797,2771.7,2771.3,0.4469]
[1740252967786,3.60766,2771.9,2771.3,0.4469]
[1740252967999,4.41472,2772.0,2771.4,3.60824]
[1740252968401,0.8071,2772.0,2771.3,0.4469]
[1740252968701,3.60772,2771.9,2771.4,0.405537]
[1740252968908,3.60779,2771.8,2771.4,0.405537]
[1740252969876,3.60779,2771.8,2771.5,0.06906386]
[1740252971286,3.60779,2771.8,2771.6,0.4469]
[1740252971490,3.60779,2771.8,2771.7,0.06860077]
[1740252976220,7.21535,2771.9,2771.7,0.06860077]
[1740252976601,3.60763,2771.9,2771.7,0.06860077]
[1740252979851,3.60758,2772.0,2771.7,0.06860077]
[1740252980346,3.60766,2771.9,2771.7,0.06860077]
[1740252980517,3.60743,2772.1,2771.7,0.06860077]
[1740252980518,7.21489,2772.1,2771.7,0.06860077]
[1740252980715,3.60743,2772.1,2771.7,0.06860077]
[1740252981048,3.6075,2772.0,2771.7,0.06860077]
[1740252981251,3.60744,2772.1,2771.7,0.06860077]
[1740252981802,3.6075,2772.0,2771.7,0.06860077]
[1740252983640,7.21493,2772.1,2771.7,0.06860077]
[1740252984139,7.21493,2772.1,2771.6,0.4469]
[1740252984338,3.60717,2772.3,2771.6,4.74345537]
[1740252984526,4.36843,2772.4,2771.8,3.60769]
[1740252985147,3.60714,2772.3,2771.7,7.66253]
[1740252986303,3.60714,2772.3,2771.7,4.05471]
[1740252989137,7.21435,2772.3,2771.7,4.05471]
[1740252989338,7.21435,2772.3,2771.8,0.47432654]
[1740252989566,3.60726,2772.2,2771.8,0.47432654]
[1740252991216,3.60687,2772.5,2771.9,4.05441]
[1740252991548,3.60693,2772.5,2771.9,4.05441]
[1740252991720,3.60699,2772.4,2772.0,0.45287365]
[1740252991921,3.60712,2772.3,2772.0,0.45287365]
[1740252992107,3.60699,2772.4,2771.9,0.4469]
[1740252992510,3.60723,2772.3,2771.9,0.4469]
[1740252992711,3.60736,2772.2,2771.9,0.4469]
[1740252992914,3.60736,2772.2,2771.7,0.262]
[1740252992915,3.60737,2772.1,2771.7,0.4469]
[1740252993237,3.60776,2771.8,2771.6,6.07855537]
[1740252993561,3.60776,2771.8,2771.6,0.75620916]
[1740252993759,7.21562,2771.8,2771.6,0.06765379]
[1740252993972,3.60789,2771.7,2771.6,0.06765379]
[1740252994117,3.60789,2771.7,2771.5,0.4469]
[1740252994556,0.7842,2771.9,2771.5,0.51456592]
[1740252994767,3.60777,2771.8,2771.5,0.51456592]
[1740252995065,3.60777,2771.8,2771.5,0.92685951]
[1740252996057,3.60757,2772.0,2771.5,0.92685951]
[1740252996265,3.60757,2772.0,2771.6,0.70580157]
[1740252996786,3.60764,2771.9,2771.6,0.70580157]
[1740252996958,3.60757,2772.0,2771.6,0.70580157]
[1740252997163,3.60737,2772.1,2771.6,0.70580157]
[1740252997469,3.60737,2772.1,2771.6,1.22311009]
[1740252997675,3.60755,2772.0,2771.6,1.22311009]
[1740252998980,7.21462,2772.2,2771.6,0.70580157]
[1740252999180,3.60727,2772.2,2771.6,0.70580157]
[1740253000386,3.6075,2772.0,2771.6,0.70580157]
[1740253002458,3.60737,2772.1,2771.6,0.70580157]
[1740253002786,3.6075,2772.0,2771.5,0.85919359]
[1740253002993,3.6075,2772.0,2771.6,0.44674636]
[1740253003558,7.21512,2772.0,2771.6,0.44674636]
[1740253003858,3.60768,2771.9,2771.6,0.44674636]
[1740253004075,3.6075,2772.0,2771.5,1.5924662]
[1740253004486,3.6079,2771.7,2771.5,0.52584357]
[1740253006395,4.39222,2771.6,2771.5,0.07894357]
[1740253006760,4.39222,2771.6,2771.0,0.4469]
[1740253006761,3.6085,2771.3,2771.0,0.4469]
[1740253007187,3.60854,2771.2,2771.1,0.06859229]
[1740253007995,3.60835,2771.4,2771.1,0.06859229]
[1740253008578,3.60844,2771.3,2771.1,0.06859229]
[1740253010900,3.60822,2771.5,2771.1,0.06859229]
[1740253011587,0.7749,2772.0,2771.2,4.05536]
[1740253011899,4.38243,2772.0,2771.4,3.60819]
[1740253012089,3.60768,2771.9,2771.5,0.06848613]
[1740253012582,3.60778,2771.8,2771.5,0.06848613]
[1740253012780,3.60798,2771.7,2771.2,0.4469]
[1740253013092,3.60798,2771.7,2771.3,0.44679892]
[1740253013270,3.60798,2771.7,2771.4,0.0687177]
[1740253014799,3.60779,2771.8,2771.4,0.0687177]
[1740253017219,3.60815,2771.5,2771.4,0.0687177]
[1740253017699,3.60829,2771.4,2771.0,0.4469]
[1740253018004,3.60829,2771.4,2771.0,1.391487]
[1740253018674,3.60829,2771.4,2771.0,0.944587]
[1740253018874,3.60843,2771.3,2771.0,0.944587]
[1740253020216,3.60829,2771.4,2771.0,0.944587]
[1740253020425,3.60858,2771.2,2770.8,5.8369]
[1740253021480,4.41578,2771.2,2770.8,0.4469]
[1740253021681,4.41578,2771.2,2770.6,0.4469]
[1740253022119,8.02443,2771.2,2770.6,0.4469]
[1740253022289,4.41578,2771.2,2770.6,0.4469]
[1740253023214,4.41578,2771.2,2770.6,0.852535]
[1740253023544,3.60875,2771.1,2770.6,0.852535]
[1740253029941,3.60875,2771.1,2770.7,0.06991165]
[1740253036446,3.60875,2771.1,2770.8,0.4469]
[1740253036750,3.60875,2771.1,2770.9,0.07003758]
[1740253039755,3.60856,2771.2,2770.9,0.07003758]
[1740253043152,7.21668,2771.4,2770.9,0.07003758]
[1740253043357,3.60863,2771.2,2770.9,0.07003758]
[1740253043533,4.39519,2771.1,2770.9,0.07003758]
[1740253043734,4.39519,2771.1,2770.6,0.4469]
[1740253043935,4.39519,2771.1,2770.7,0.07048936]
[1740253045463,0.7865,2771.1,2770.7,0.07048936]
[1740253046569,3.60855,2771.2,2770.7,0.07048936]
[1740253054142,3.60855,2771.2,2770.7,3.67967936]
[1740253054345,0.7619,2771.3,2770.7,3.67967936]
[1740253055382,4.37033,2771.3,2770.7,3.67967936]
[1740253056782,3.60805,2771.6,2770.8,0.4469]
[1740253056986,5.24,2771.7,2771.3,3.6084]
[1740253057190,5.24,2771.7,2771.4,0.4469]
[1740253057486,5.24,2771.7,2771.4,0.51598739]
[1740253059084,8.84792,2771.7,2771.4,0.51598739]
[1740253059285,5.24,2771.7,2771.5,3.60806]
[1740253059673,5.24,2771.7,2771.6,0.06862427]
[1740253059996,3.60752,2772.0,2771.4,4.05518]
[1740253060167,3.60752,2772.0,2771.6,0.06862427]
[1740253060367,3.60763,2771.9,2771.5,0.06885583]
[1740253061594,8.03437,2772.1,2771.5,0.06885583]
[1740253061794,3.60751,2772.0,2771.5,0.06885583]
[1740253062464,3.60766,2771.9,2771.5,0.06885583]
[1740253062770,4.42724,2771.8,2771.5,0.06885583]
[1740253064399,3.60766,2771.9,2771.5,0.06885583]
[1740253064792,3.60753,2772.0,2771.5,0.48125741]
[1740253065575,3.60764,2771.9,2771.5,0.48125741]
[1740253066410,3.60797,2771.7,2771.5,0.06885583]
[1740253066579,3.60802,2771.6,2771.5,0.06885583]
[1740253067112,3.6077,2771.9,2771.5,0.06885583]
[1740253067671,7.21546,2771.9,2771.5,0.06885583]
[1740253068106,3.6077,2771.9,2771.5,0.06885583]
[1740253068408,3.60777,2771.8,2771.5,0.06885583]
[1740253068613,3.6077,2771.9,2771.5,0.06885583]
[1740253068968,5.24,2772.2,2771.6,0.4469]
[1740253069189,5.24,2772.2,2771.7,0.06782667]
[1740253069782,3.60751,2772.0,2771.7,0.06782667]
[1740253070392,3.60776,2771.8,2771.7,0.06782667]
[1740253070903,3.60804,2771.6,2771.4,0.4469]
[1740253071900,3.6081,2771.6,2771.4,0.4469]
[1740253074889,3.6081,2771.6,2771.5,0.06828975]
[1740253075989,7.21572,2771.8,2771.5,0.06828975]
[1740253076901,3.60791,2771.7,2771.5,0.06828975]
[1740253077696,3.60784,2771.8,2771.5,0.06828975]
[1740253077901,3.60802,2771.6,2771.5,0.06828975]
[1740253081802,3.60796,2771.7,2771.5,0.06828975]
[1740253085345,3.60784,2771.8,2771.5,0.06828975]
[1740253090330,3.60757,2772.0,2771.5,0.06828975]
[1740253090838,3.60757,2772.0,2771.5,3.67642975]
[1740253091045,3.60757,2772.0,2771.6,0.4469]
[1740253091224,3.60757,2772.0,2771.6,0.5149582]
[1740253093133,4.43489,2772.2,2771.6,0.5149582]
[1740253093434,3.60744,2772.1,2771.6,0.5149582]
[1740253093950,3.6075,2772.0,2771.6,0.5149582]
[1740253094303,5.402379,2772.2,2771.6,0.5149582]
[1740253094523,3.60739,2772.1,2771.6,0.5149582]
[1740253096042,3.60758,2772.0,2771.6,0.5149582]
[1740253097638,6.60719,2772.3,2771.6,4.53517102]
[1740253097826,6.60719,2772.3,2771.7,0.4469]
[1740253098237,6.60719,2772.3,2771.8,0.06761822]
[1740253098543,6.60719,2772.3,2771.7,0.4469]
[1740253098713,6.60719,2772.3,2771.8,0.06761822]
[1740253098908,3.60702,2772.4,2771.8,3.60775]
[1740253099136,3.60702,2772.4,2772.0,0.4469]
[1740253099337,7.21408,2772.4,2772.0,0.4469]
[1740253099542,3.60702,2772.4,2772.0,0.4469]
[1740253099761,7.2141,2772.4,2772.0,0.4469]
[1740253099913,3.60702,2772.4,2772.0,0.4469]
[1740253101859,8.55292012,2773.5,2772.3,2.07486351]
[1740253102014,3.60622,2773.0,2772.5,2.07486351]
[1740253103009,3.60605,2773.2,2772.6,0.4469]
[1740253103212,3.60605,2773.2,2772.7,0.4469]
[1740253103514,7.21155,2773.4,2772.7,4.05348]
[1740253103713,7.21155,2773.4,2772.7,4.98228635]
[1740253103914,3.60607,2773.1,2772.7,1.37570635]
[1740253104912,3.60607,2773.1,2772.7,0.4469]
[1740253105231,3.60593,2773.3,2772.7,0.4469]
[1740253105753,7.21186,2773.3,2772.7,0.4469]
[1740253105943,3.60596,2773.2,2772.7,0.4469]
[1740253108447,3.60607,2773.1,2772.7,0.4469]
[1740253108648,3.60607,2773.1,2772.7,1.72657938]
[1740253110046,3.60528,2773.8,2772.9,6.95927377]
[1740253110253,0.7562,2774.0,2773.4,0.4469]
[1740253110640,3.60525,2773.8,2773.4,0.4469]
[1740253111315,4.36119,2774.0,2773.4,0.4469]
[1740253111528,3.60499,2774.0,2773.4,0.4469]
[1740253111850,8.84485,2774.1,2773.4,4.79307338]
[1740253112048,3.6049,2774.0,2773.4,4.79307338]
[1740253112255,8.84481,2774.1,2773.4,4.79303338]
[1740253112443,12.44968,2774.1,2773.4,4.79303338]
[1740253112644,8.84481,2774.1,2773.4,7.95172338]
[1740253112840,8.84481,2774.1,2773.5,0.4469]
[1740253113056,3.60481,2774.1,2773.5,0.4469]
[1740253113464,3.60529,2773.8,2773.5,0.4469]
[1740253113632,1.540535,2773.8,2773.3,0.4469]
[1740253113837,3.60529,2773.7,2773.0,0.4469]
[1740253114036,3.60552,2773.6,2773.0,4.05301]
[1740253114245,3.60559,2773.5,2773.0,4.05301]
[1740253114946,3.6057,2773.4,2773.0,0.4469]
[1740253115150,3.60559,2773.5,2773.0,0.4469]
[1740253115458,3.60559,2773.5,2773.1,0.74062538]
[1740253116762,3.60576,2773.4,2773.1,0.74062538]
[1740253116940,3.60576,2773.4,2773.0,0.4469]
[1740253117341,3.60559,2773.5,2773.0,0.4469]
[1740253117663,3.60534,2773.7,2773.1,0.4469]
[1740253118363,3.61006,2773.9,2773.4,0.4469]
[1740253119556,3.60519,2773.8,2773.4,0.4469]
[1740253119960,3.60519,2773.8,2773.5,0.47806146]
[1740253120168,0.005,2773.9,2773.5,0.47806146]
[1740253120482,3.61004,2773.9,2773.5,0.47806146]
[1740253120664,3.61004,2773.9,2773.4,0.4469]
[1740253121473,0.005,2773.9,2773.4,0.4469]
[1740253121784,0.005,2773.9,2773.4,4.05258]
[1740253122484,0.005,2773.9,2773.4,0.4469]
[1740253122856,0.005,2773.9,2772.7,7.367]
[1740253122857,0.7739,2773.4,2772.7,7.367]
[1740253123169,3.60646,2772.8,2772.7,7.367]
[1740253123741,3.60646,2772.8,2772.0,8.74305377]
[1740253123742,3.60698,2772.4,2772.1,0.4469]
[1740253124065,3.60698,2772.4,2772.2,0.58369]
[1740253124245,3.60698,2772.4,2772.1,0.4469]
[1740253124872,3.60688,2772.5,2772.1,0.4469]
[1740253129377,3.60662,2772.7,2772.1,4.05418]
[1740253129741,3.60636,2772.9,2772.1,4.05418]
[1740253129941,5.24,2773.1,2772.3,3.35305377]
[1740253130137,3.60607,2773.1,2772.6,3.60666]
[1740253130571,3.60646,2772.8,2772.5,0.4469]
[1740253130810,3.60675,2772.6,2772.2,0.4469]
[1740253130977,7.99902,2772.8,2772.2,0.4469]
[1740253131146,0.27071801,2773.5,2772.2,0.4469]
[1740253131147,0.786,2773.1,2772.4,3.60687]
[1740253131346,3.60629,2773.0,2772.4,7.619147]
[1740253131547,3.60629,2773.0,2772.4,4.012247]
[1740253132878,8.84528,2773.8,2772.4,4.012247]
[1740253132879,3.60571,2773.4,2772.8,3.60644]
[1740253133047,3.60571,2773.4,2772.9,4.05322]
[1740253133248,0.7897,2773.6,2772.9,0.4469]
[1740253133450,0.7897,2773.6,2772.7,0.4469]
[1740253133650,1.71978787,2773.6,2772.7,0.4469]
[1740253133962,3.60568,2773.4,2772.7,4.05348]